fUSD/lending_fUSD_20250522
["ID","MTS","AMOUNT","RATE_DAILY","PERIOD"]
[361902021,1747876297172,-420.0,0.00033698,14]
[361902022,1747876297182,-955.91,0.00033698,14]
[361902023,1747876297191,-1578.04,0.00033698,14]
[361902024,1747876297200,-1243.79,0.00033698,14]
[361902025,1747876297210,-576.27,0.00033698,14]
[361902026,1747876297219,-1434.12,0.00033698,14]
[361902027,1747876297229,-1593.0,0.00033698,14]
[361902028,1747876297238,-500.15,0.00033698,14]
[361902029,1747876297247,-785.03,0.00033698,14]
[361902030,1747876297257,-475.61,0.00033698,14]
[361902031,1747876297266,-598.34,0.00033698,14]
[361902032,1747876297276,-621.07,0.00033698,14]
[361902033,1747876297285,-420.0,0.00033698,14]
[361902034,1747876297294,-420.0,0.00033698,14]
[361902035,1747876297304,-992.71,0.00033698,14]
[361902036,1747876297314,-477.34,0.00033698,14]
[361902037,1747876297323,-420.0,0.00033698,14]
[361902038,1747876297332,-666.82,0.00033698,14]
[361902039,1747876297342,-420.0,0.00033698,14]
[361902040,1747876297351,-420.0,0.00033698,14]
[361902041,1747876297361,-420.0,0.00033698,14]
[361902042,1747876297370,-998.22,0.00033698,14]
[361902043,1747876297379,-420.0,0.00033698,14]
[361902044,1747876297389,-420.0,0.00033698,14]
[361902045,1747876297399,-1225.56,0.00033698,14]
[361902046,1747876297408,-420.0,0.00033698,14]
[361902047,1747876297417,-420.0,0.00033698,14]
[361902048,1747876297427,-420.0,0.00033698,14]
[361902049,1747876297436,-563.91,0.00033698,14]
[361902050,1747876297445,-2128.84,0.00033698,14]
[361902051,1747876297455,-546.7,0.00033698,14]
[361902052,1747876297464,-502.85,0.00033698,14]
[361902053,1747876297474,-705.8,0.00033698,14]
[361902054,1747876297483,-436.62,0.00033698,14]
[361902055,1747876297493,-420.0,0.00033698,14]
[361902056,1747876297503,-454.97,0.00033698,14]
[361902057,1747876297512,-420.0,0.00033698,14]
[361902058,1747876297521,-300.0,0.00033698,14]
[361902059,1747876297531,-272.18167053,0.00033698,14]
[361902060,1747876297541,-420.0,0.00033698,14]
[361902061,1747876297551,-930.65,0.00033698,14]
[361902062,1747876297563,-35065.09,0.00033698,7]
[361902063,1747876297572,-420.0,0.00033698,14]
[361902064,1747876297582,-715.09,0.00033698,14]
[361902065,1747876297591,-420.0,0.00033698,14]
[361902066,1747876297601,-2051.16,0.00033698,14]
[361902067,1747876297612,-695.04,0.00033698,14]
[361902068,1747876297621,-813.33,0.00033698,14]
[361902069,1747876297630,-420.0,0.00033698,14]
[361902070,1747876297640,-1845.44,0.00033698,14]
[361902071,1747876297649,-420.0,0.00033698,14]
[361902072,1747876297659,-420.0,0.00033698,14]
[361902073,1747876297668,-1000.0,0.00033698,14]
[361902074,1747876297677,-1815.23,0.00033698,14]
[361902075,1747876297687,-2446.28,0.00033698,14]
[361902076,1747876297696,-486.77782355,0.00033698,14]
[361902077,1747876297706,-420.0,0.00033698,14]
[361902078,1747876297715,-500.0,0.00033698,2]
[361902079,1747876297725,-420.0,0.00033698,14]
[361902080,1747876297734,-491.29,0.00033698,14]
[361902081,1747876297743,-825.68,0.00033698,14]
[361902082,1747876297764,-420.0,0.00033698,14]
[361902083,1747876297777,-456.87,0.00033698,14]
[361902084,1747876297787,-578.94,0.00033698,14]
[361902085,1747876297797,-1070.19,0.00033698,14]
[361902086,1747876297809,-420.0,0.00033698,14]
[361902087,1747876297819,-1600.77,0.00033698,14]
[361902088,1747876297829,-451.36,0.00033698,14]
[361902089,1747876297839,-1363.8,0.00033698,14]
[361902090,1747876297849,-420.0,0.00033698,14]
[361902091,1747876297858,-420.0,0.00033698,14]
[361902092,1747876297868,-508.45,0.00033698,14]
[361902093,1747876297878,-420.0,0.00033698,14]
[361902094,1747876297888,-1692.02,0.00033698,14]
[361902095,1747876297898,-563.18,0.00033698,14]
[361902096,1747876297909,-588.94,0.00033698,14]
[361902097,1747876297919,-420.0,0.00033698,14]
[361902098,1747876297928,-488.0,0.00033698,14]
[361902099,1747876297938,-1736.69,0.00033698,14]
[361902100,1747876297948,-420.0,0.00033698,14]
[361902101,1747876297958,-820.35,0.00033698,14]
[361902102,1747876297967,-4149.62,0.00033698,14]
[361902103,1747876297977,-499.28,0.00033698,14]
[361902104,1747876297987,-420.0,0.00033698,14]
[361902105,1747876297997,-1499.77,0.00033698,14]
[361902106,1747876298008,-499.53,0.00033698,14]
[361902107,1747876298017,-420.0,0.00033698,14]
[361902108,1747876298027,-420.0,0.00033698,14]
[361902109,1747876298037,-420.0,0.00033698,14]
[361902110,1747876298047,-293.309899,0.00033698,7]
[361902111,1747876298059,-420.0,0.00033698,14]
[361902112,1747876298069,-293.309899,0.00033698,7]
[361902113,1747876298084,-420.0,0.00033698,14]
[361902114,1747876298094,-420.0,0.00033698,14]
[361902115,1747876298105,-7869.76,0.00033698,14]
[361902116,1747876298115,-420.0,0.00033698,14]
[361902117,1747876298126,-982.51,0.00033698,14]
[361902118,1747876298136,-1590.74,0.00033698,14]
[361902119,1747876298146,-420.0,0.00033698,14]
[361902120,1747876298158,-420.0,0.00033698,14]
[361902121,1747876298169,-420.0,0.00033698,14]
[361902122,1747876298179,-1015.92,0.00033698,14]
[361902123,1747876298190,-293.309899,0.00033698,7]
[361902124,1747876298208,-293.309899,0.00033698,7]
[361902125,1747876298219,-420.0,0.00033698,14]
[361902126,1747876298230,-420.0,0.00033698,14]
[361902127,1747876298241,-420.0,0.00033698,14]
[361902128,1747876298253,-420.0,0.00033698,14]
[361902129,1747876298263,-420.0,0.00033698,14]
[361902130,1747876298274,-420.0,0.00033698,14]
[361902131,1747876298285,-1003.22,0.00033698,14]
[361902132,1747876298295,-420.0,0.00033698,14]
[361902133,1747876298306,-546.91,0.00033698,14]
[361902134,1747876298318,-632.46,0.00033698,14]
[361902135,1747876298328,-420.0,0.00033698,14]
[361902136,1747876298338,-961.42,0.00033698,14]
[361902137,1747876298350,-1931.21,0.00033698,14]
[361902138,1747876298361,-420.0,0.00033698,14]
[361902139,1747876298371,-420.0,0.00033698,14]
[361902140,1747876298383,-1080.13,0.00033698,14]
[361902141,1747876298394,-437.43,0.00033698,14]
[361902142,1747876298406,-420.0,0.00033698,14]
[361902143,1747876298417,-1075.92,0.00033698,14]
[361902144,1747876298428,-420.0,0.00033698,14]
[361902145,1747876298438,-420.0,0.00033698,14]
[361902146,1747876298449,-643.79,0.00033698,14]
[361902147,1747876298460,-420.0,0.00033698,14]
[361902148,1747876298471,-420.0,0.00033698,14]
[361902149,1747876298482,-555.47,0.00033698,14]
[361902150,1747876298492,-420.0,0.00033698,14]
[361902151,1747876298503,-420.0,0.00033698,14]
[361902152,1747876298515,-1641.51,0.00033698,14]
[361902153,1747876298526,-909.48,0.00033698,14]
[361902154,1747876298536,-420.0,0.00033698,14]
[361902155,1747876298547,-1331.72,0.00033698,14]
[361902156,1747876298557,-420.0,0.00033698,14]
[361902157,1747876298568,-1016.48,0.00033698,14]
[361902158,1747876298579,-1512.69,0.00033698,14]
[361902159,1747876298589,-171.26097247,0.00033698,14]
[361902160,1747876299686,-248.73902753,0.00033698,14]
[361902161,1747876299696,-1024.26097247,0.00033698,14]
[361902162,1747876299709,-234.31902753,0.00033698,14]
[361902163,1747876299720,-420.0,0.00033698,14]
[361902164,1747876299731,-420.0,0.00033698,14]
[361902165,1747876299742,-430.22,0.00033698,14]
[361902166,1747876299752,-3533.31280551,0.00033698,14]
[361902167,1747876299765,-157.49719449,0.00033698,14]
[361902168,1747876299775,-420.0,0.00033698,14]
[361902169,1747876299786,-420.0,0.00033698,14]
[361902170,1747876299796,-1297.86,0.00033698,14]
[361902171,1747876299806,-420.0,0.00033698,14]
[361902172,1747876299816,-420.0,0.00033698,14]
[361902173,1747876299827,-1808.83,0.00033698,14]
[361902174,1747876299836,-551.95,0.00033698,14]
[361902175,1747876299846,-420.0,0.00033698,14]
[361902176,1747876299856,-420.0,0.00033698,14]
[361902177,1747876299866,-95.93393541,0.00033698,14]
[361902178,1747876299879,-324.06606459,0.00033698,14]
[361902179,1747876299890,-538.72,0.00033698,14]
[361902180,1747876299900,-420.0,0.00033698,14]
[361902181,1747876299910,-783.79,0.00033698,14]
[361902182,1747876299921,-420.0,0.00033698,14]
[361902183,1747876299930,-420.0,0.00033698,14]
[361902184,1747876299940,-420.0,0.00033698,14]
[361902185,1747876299950,-420.0,0.00033698,14]
[361902186,1747876299960,-524.752407,0.00033698,7]
[361902187,1747876299971,-1161.13,0.00033698,14]
[361902188,1747876299981,-524.752407,0.00033698,7]
[361902189,1747876299991,-420.0,0.00033698,14]
[361902190,1747876300002,-541.23,0.00033698,14]
[361902191,1747876300013,-406.685692,0.00033698,7]
[361902192,1747876300023,-406.685692,0.00033698,7]
[361902193,1747876300033,-3128.31,0.00033698,14]
[361902194,1747876300044,-524.752407,0.00033698,7]
[361902195,1747876300054,-420.0,0.00033698,14]
[361902196,1747876300065,-420.0,0.00033698,14]
[361902197,1747876300076,-524.752407,0.00033698,7]
[361902198,1747876300090,-1565.28,0.00033698,14]
[361902199,1747876300100,-420.0,0.00033698,14]
[361902200,1747876300110,-1064.31,0.00033698,14]
[361902201,1747876300121,-1508.96,0.00033698,14]
[361902202,1747876300131,-420.0,0.00033698,14]
[361902203,1747876300142,-420.0,0.00033698,14]
[361902204,1747876300152,-406.685692,0.00033698,7]
[361902205,1747876300170,-406.685692,0.00033698,7]
[361902206,1747876300180,-695.29,0.00033698,14]
[361902207,1747876300192,-420.0,0.00033698,14]
[361902208,1747876300203,-420.0,0.00033698,14]
[361902209,1747876300213,-1656.26,0.00033698,14]
[361902210,1747876300224,-420.0,0.00033698,14]
[361902211,1747876300235,-1171.94,0.00033698,14]
[361902212,1747876300246,-5608.05,0.00033698,14]
[361902213,1747876300256,-1882.57,0.00033698,14]
[361902214,1747876300267,-253.24437358,0.00033698,14]
[361902215,1747876300298,-166.75562642,0.00033698,14]
[361902216,1747876300311,-1453.93,0.00033698,14]
[361902217,1747876300321,-420.0,0.00033698,14]
[361902218,1747876300333,-938.15,0.00033698,14]
[361902219,1747876300343,-854.87,0.00033698,14]
[361902220,1747876300353,-584.06,0.00033698,14]
[361902221,1747876300363,-420.0,0.00033698,14]
[361902222,1747876300373,-420.0,0.00033698,14]
[361902223,1747876300383,-420.0,0.00033698,14]
[361902224,1747876300394,-420.0,0.00033698,14]
[361902225,1747876300405,-420.0,0.00033698,14]
[361902226,1747876300416,-363.47864312,0.00033698,14]
[361902229,1747877166781,937.27754991,8e-05,2]
[361902280,1747877437987,-180.0,0.00011899,2]
[361902281,1747877437997,-171.68,0.000119,2]
[361902282,1747877438007,-1147.24865262,0.000119,2]
[361902284,1747877438018,-97.4878217,0.000119,2]
[361902285,1747877438028,-167.74150988,0.000119,2]
[361902286,1747877438037,-176.72179531,0.000119,2]
[361902287,1747877438047,-180.59775018,0.000119,2]
[361902288,1747877438058,-1992.71425087,0.000119,2]
[361902289,1747877438115,-5220.01554153,0.000119,2]
[361902290,1747877438125,-13712.25776757,0.000119,2]
[361902291,1747877438134,-162.0,0.00011973,2]
[361902292,1747877438144,-300.0,0.00011997,2]
[361902293,1747877438154,-215.61990572,0.00011999,2]
[361902294,1747877438163,-500.0,0.00011999,2]
[361902296,1747877438173,-500.0,0.00011999,2]
[361902297,1747877438183,-500.0,0.00011999,2]
[361902299,1747877438193,-500.0,0.00011999,2]
[361902301,1747877438202,-500.0,0.00011999,2]
[361902303,1747877438212,-500.0,0.00011999,2]
[361902305,1747877438222,-500.0,0.00011999,2]
[361902306,1747877438232,-500.0,0.00011999,2]
[361902307,1747877438242,-500.0,0.00011999,2]
[361902308,1747877438251,-500.0,0.00011999,2]
[361902310,1747877438260,-500.0,0.00011999,2]
[361902311,1747877438270,-500.0,0.00011999,2]
[361902313,1747877438279,-500.0,0.00011999,2]
[361902315,1747877438288,-321.43725489,0.00011999,2]
[361902317,1747877438298,-500.0,0.00011999,2]
[361902319,1747877438308,-500.0,0.00011999,2]
[361902321,1747877438322,-250.0,0.00011999,2]
[361902323,1747877438331,-33550.25557053,0.00012,2]
[361902325,1747877438343,-8165.62208612,0.00012,2]
[361902508,1747877440164,-22008.00000001,0.00012,2]
[361902513,1747877440210,-5930.31268022,0.00012,2]
[361902516,1747877440223,-9520.0,0.00012,2]
[361902528,1747877440366,-588.7176953,0.00012,2]
[361902540,1747877440458,-875.05000043,0.00012,2]
[361902581,1747877443156,-6015.00808004,0.00012,2]
[361902582,1747877443396,-454.34108595,0.00012,2]
[361902587,1747877446290,-604.0,0.00012,2]
[361902588,1747877446385,-69824.28385474,0.00012,2]
[361902590,1747877446395,-909950.0321858,0.00012,2]
[361902598,1747877890299,-200.0,0.000115,4]
[361902599,1747877890325,-41.11012424,0.00011507,2]
[361902600,1747877891885,-223.14565518,0.00011507,2]
[361902601,1747877894046,-201.0,0.00011507,2]
[361902602,1747877896046,-201.0,0.00011507,2]
[361902603,1747877898335,-393.20233347,0.00011507,2]
[361902604,1747877900495,-240.90543288,0.00011507,2]
[361902605,1747877903259,-192.70470849,0.00011507,2]
[361902606,1747877906419,-205.0,0.00011507,2]
[361902607,1747877908033,-171.90880461,0.00011507,2]
[361902608,1747877910070,-220.36119539,0.00011507,2]
[361902609,1747877911135,-389.93,0.00011507,2]
[361902610,1747877913780,-168.75,0.00011507,2]
[361902611,1747877916010,-101.98174574,0.00011507,2]
[361902641,1747878158486,150.0,0.00012,5]
[361902642,1747878270899,23900.0,0.00011022,2]
[361902643,1747878301493,-250.0,0.00011538,2]
[361902644,1747878301519,-200.0,0.0001155,2]
[361902645,1747878301544,-448.8626644,0.00011557,2]
[361902646,1747878301568,-250.0,0.00011593,2]
[361902647,1747878301598,-500.0,0.000116,4]
[361902648,1747878301623,-424.0034371,0.000116,2]
[361902649,1747878301649,-700.0,0.000117,4]
[361902650,1747878301673,-202.69488061,0.000117,2]
[361902651,1747878301698,-202.69488061,0.000118,2]
[361902652,1747878301723,-1000.0,0.000118,4]
[361902653,1747878301758,-300.0,0.00011899,2]
[361902654,1747878301792,-202.69488061,0.00011899,2]
[361902655,1747878301822,-1200.0,0.000119,4]
[361902656,1747878301847,-370.53022581,0.000119,2]
[361902657,1747878301872,-5000.0,0.000119,2]
[361902658,1747878301897,-203.3874567,0.000119,2]
[361902659,1747878301920,-168.97834157,0.000119,2]
[361902660,1747878301946,-948.59492954,0.000119,2]
[361902661,1747878301978,-175.0827984,0.000119,2]
[361902662,1747878302004,-4818.91915172,0.000119,2]
[361902663,1747878302029,-182.13497676,0.000119,2]
[361902664,1747878302055,-831.50914568,0.000119,2]
[361902665,1747878302085,-175.08279838,0.00011905,2]
[361902666,1747878302110,-175.08279838,0.00011911,2]
[361902667,1747878302136,-175.08279838,0.00011916,2]
[361902668,1747878302160,-948.59492953,0.00011939,2]
[361902669,1747878302185,-500.80302102,0.00011973,2]
[361902670,1747878302209,-500.64913177,0.00011973,2]
[361902671,1747878302233,-155.76390335,0.00011973,2]
[361902672,1747878302256,-500.34396878,0.00011973,2]
[361902673,1747878302281,-504.20999878,0.00011973,2]
[361902674,1747878302306,-502.66941644,0.00011973,2]
[361902675,1747878302333,-508.56542801,0.00011973,2]
[361902676,1747878302359,-948.59492953,0.00011978,2]
[361902677,1747878302384,-22428.10633515,0.00011989,2]
[361902678,1747878302410,-3562.579,0.00011989,2]
[361902679,1747878302435,-167.537,0.00011989,2]
[361902680,1747878302467,-1000.70244276,0.00011999,3]
[361902681,1747878302492,-1000.70244276,0.00011999,3]
[361902682,1747878302517,-1000.70244276,0.00011999,3]
[361902683,1747878302542,-1000.70244276,0.00011999,3]
[361902684,1747878302567,-1000.70244276,0.00011999,3]
[361902685,1747878302596,-1000.70244276,0.00011999,3]
[361902686,1747878302622,-1000.70244273,0.00011999,3]
[361902687,1747878302653,-500.0,0.00011999,2]
[361902688,1747878303007,-500.0,0.00011999,2]
[361902689,1747878303039,-625.47370771,0.00011999,2]
[361902690,1747878303073,-500.0,0.00011999,2]
[361902691,1747878303105,-500.0,0.00011999,2]
[361902692,1747878303136,-500.0,0.00011999,2]
[361902693,1747878303167,-500.0,0.00011999,2]
[361902694,1747878303198,-500.0,0.00011999,2]
[361902695,1747878303228,-500.0,0.00011999,2]
[361902696,1747878303258,-500.0,0.00011999,2]
[361902697,1747878303288,-78767.79552667,0.00012,2]
[361902698,1747878303317,-618768.06043932,0.00012,2]
[361902732,1747878632163,-200.0,0.00011899,2]
[361902733,1747878632174,-250.0,0.00011899,2]
[361902734,1747878632184,-125.46274099,0.00011899,2]
[361902735,1747878632207,-1074.53725901,0.00011899,2]
[361902736,1747878632221,-5000.0,0.000119,2]
[361902737,1747878632232,-683.13920074,0.000119,2]
[361902738,1747878632243,-213.82783903,0.000119,2]
[361902739,1747878632254,-185.67748558,0.000119,2]
[361902740,1747878632265,-659.82917175,0.00011948,2]
[361902741,1747878632275,-215.89590708,0.00011973,2]
[361902742,1747878632286,-500.0,0.00011973,2]
[361902743,1747878632297,-501.74323714,0.00011973,2]
[361902744,1747878632306,-501.80895195,0.00011973,2]
[361902745,1747878632317,-508.07306319,0.00011973,2]
[361902746,1747878632327,-351.33306247,0.00011988,2]
[361902747,1747878632338,-164.85,0.0001199,2]
[361902749,1747878632348,-164.85,0.0001199,2]
[361902751,1747878632358,-164.85,0.0001199,2]
[361902753,1747878632369,-164.85,0.0001199,2]
[361902755,1747878632383,-164.85,0.0001199,2]
[361902757,1747878632395,-164.85,0.0001199,2]
[361902759,1747878632406,-164.85,0.0001199,2]
[361902762,1747878632417,-164.85,0.0001199,2]
[361902764,1747878632429,-164.85,0.0001199,2]
[361902766,1747878632440,-150.0,0.00011998,2]
[361902768,1747878632452,-500.0,0.00011999,2]
[361902770,1747878632462,-500.0,0.00011999,2]
[361902772,1747878632473,-500.0,0.00011999,2]
[361902774,1747878632483,-500.0,0.00011999,2]
[361902776,1747878632494,-500.0,0.00011999,2]
[361902778,1747878632504,-500.0,0.00011999,2]
[361902779,1747878632514,-500.0,0.00011999,2]
[361902782,1747878632525,-500.0,0.00011999,2]
[361902783,1747878632535,-500.0,0.00011999,2]
[361902786,1747878632546,-500.0,0.00011999,2]
[361902789,1747878632556,-500.0,0.00011999,2]
[361902792,1747878632566,-500.0,0.00011999,2]
[361902794,1747878632576,-500.0,0.00011999,2]
[361902796,1747878632587,-500.0,0.00011999,2]
[361902798,1747878632597,-500.0,0.00011999,2]
[361902801,1747878632608,-500.0,0.00011999,2]
[361902804,1747878632619,-500.0,0.00011999,2]
[361902809,1747878632642,-500.0,0.00011999,2]
[361902812,1747878632652,-500.0,0.00011999,2]
[361902814,1747878632663,-500.0,0.00011999,2]
[361902816,1747878632674,-500.0,0.00011999,2]
[361902818,1747878632684,-500.0,0.00011999,2]
[361902820,1747878632695,-500.0,0.00011999,2]
[361902822,1747878632705,-500.0,0.00011999,2]
[361902824,1747878632715,-390.21624096,0.00011999,2]
[361902827,1747878632730,-109.78375904,0.00011999,2]
[361902829,1747878632740,-500.0,0.00011999,2]
[361902831,1747878632750,-199.61625423,0.00011999,2]
[361902833,1747878632763,-53.90955777,0.00011999,2]
[361902835,1747878632775,-500.0,0.00011999,2]
[361902837,1747878632785,-500.0,0.00011999,2]
[361902840,1747878632796,-500.0,0.00011999,2]
[361902842,1747878632806,-500.0,0.00011999,2]
[361902844,1747878632816,-500.0,0.00011999,2]
[361902846,1747878632827,-500.0,0.00011999,2]
[361902848,1747878632837,-650.0,0.00011999,2]
[361902850,1747878632852,-5305.93546092,0.00012,2]
[361902853,1747878632869,-2839.41997,0.00012,2]
[361902855,1747878632884,-3806.41843961,0.00012,2]
[361902857,1747878632897,-519.20423304,0.00012,2]
[361902860,1747878632914,-398.30776947,0.00012,2]
[361902862,1747878632932,-1260.23074267,0.00012,2]
[361902867,1747878632962,-787.56775065,0.00012,2]
[361902869,1747878632975,-417.33535054,0.00012,2]
[361902871,1747878632988,-586.73422183,0.00012,2]
[361902873,1747878633000,-452.95011032,0.00012,2]
[361902876,1747878633014,-648.94015827,0.00012,2]
[361902878,1747878633026,-47940.79892723,0.00012,2]
[361902880,1747878633039,-1450.0,0.00012,2]
[361902883,1747878633052,-947.62507635,0.00012,2]
[361902885,1747878633065,-640.83736948,0.00012,2]
[361902944,1747878633673,-1696.92535856,0.00012,2]
[361902946,1747878633686,-1784.66812765,0.00012,2]
[361902949,1747878633704,-981.14287449,0.00012,2]
[361902951,1747878633717,-6846.92786355,0.00012,2]
[361902953,1747878633730,-1539.6573271,0.00012,2]
[361903367,1747878638090,-177.98108088,0.000119,2]
[361903370,1747878638101,-213.28504207,0.00012,2]
[361903372,1747878638112,-518.56588919,0.00012,2]
[361903377,1747878638157,-73010.76414563,0.00012,2]
[361903379,1747878638168,-24014.18297552,0.00012,2]
[361903382,1747878638180,-66156.1,0.00012,2]
[361903388,1747878638231,-582.3651651,0.00012,2]
[361903390,1747878638244,-384.43224797,0.00012,2]
[361903397,1747878638296,-1861.017139,0.00012,2]
[361903542,1747878640210,-641.01223463,0.00012,2]
[361903543,1747878640223,-3409.85201369,0.00012,2]
[361903557,1747878640347,-10262.73590952,0.00012,2]
[361903574,1747878640494,-76.97971194,0.00012,2]
[361903576,1747878640510,-312.54093169,0.00012,2]
[361903580,1747878640538,-7196.3281801,0.00012,2]
[361903583,1747878640550,-21278.74410741,0.00012,2]
[361903587,1747878640579,-26633.52587295,0.00012,2]
[361903589,1747878640591,-5705.67880457,0.00012,2]
[361904119,1747878646360,-985.06345324,0.00012,2]
[361904120,1747879112079,865.22892603,0.00011547,2]
[361904122,1747879355188,171.0,0.00027397,120]
[361904123,1747879388756,299.49,0.00027397,120]
[361904125,1747879562322,161.42,0.00011603,2]
[361904131,1747879698255,1813.70099618,0.00011424,2]
[361904132,1747879698278,947.71900382,0.00011424,2]
[361904133,1747879721169,392.56690801,0.00011512,2]
[361904163,1747879832268,-200.0,0.00011701,2]
[361904164,1747879832279,-491.65929644,0.00011718,2]
[361904165,1747879832373,-1008.34070356,0.00011718,2]
[361904166,1747879832384,-1014.34326965,0.00011801,2]
[361904167,1747879832396,-185.65673035,0.00011801,2]
[361904168,1747879832405,-300.0,0.00011801,2]
[361904169,1747879832415,-442.78690987,0.00011802,2]
[361904170,1747879832440,-1573.54254,0.00011802,2]
[361904171,1747879832537,-5554.84926218,0.00011802,2]
[361904186,1747879838272,-300.0,0.00011801,2]
[361904187,1747879838282,-4716.0718657,0.00011802,2]
[361904188,1747879838389,-476.43552863,0.00011802,2]
[361904391,1747879840848,-11136.31389362,0.00011802,2]
[361904393,1747879840858,-342.39004935,0.000119,2]
[361904395,1747879840868,-3384.1715,0.000119,2]
[361904397,1747879840878,-614.82528063,0.000119,2]
[361904399,1747879840887,-185.67748557,0.000119,2]
[361904401,1747879840896,-2751.0,0.00011916,2]
[361904403,1747879840906,-150.0,0.00011947,2]
[361904405,1747879840915,-439.8861145,0.00011948,2]
[361904407,1747879840925,-3212.61276782,0.00011948,2]
[361904409,1747879840936,-156.91992055,0.00011973,2]
[361904411,1747879840945,-516.6731402,0.00011973,2]
[361904413,1747879840955,-160.42752708,0.00011973,2]
[361904416,1747879840971,-200.0,0.00011982,2]
[361904418,1747879840980,-3168.526,0.00011982,2]
[361904420,1747879840990,-166.249,0.00011982,2]
[361904422,1747879841000,-23832.66062119,0.00011989,2]
[361904818,1747879844899,-780.79023837,0.00011989,2]
[361904821,1747879844911,-1595.55494023,0.00011989,2]
[361904823,1747879844927,-4540.0,0.00011989,2]
[361904826,1747879844938,-254.01999999,0.00011989,2]
[361904841,1747879845076,-19197.25149965,0.00011989,2]
[361904962,1747879846416,-1814.26431323,0.00011989,2]
[361904964,1747879846428,-551.44479198,0.00011989,2]
[361904967,1747879846452,-763.08569651,0.00011989,2]
[361904969,1747879846465,-22.02295384,0.00011989,2]
[361904971,1747879846475,-200.0,0.00011992,2]
[361904973,1747879846484,-562.95854616,0.00011992,2]
[361904976,1747879846495,-1414.157248,0.00011992,2]
[361904978,1747879846507,-545.152395,0.00011992,2]
[361904980,1747879846518,-873.2650675,0.00011992,2]
[361904982,1747879846529,-472.95900005,0.00011992,2]
[361904987,1747879846565,-5489.77270481,0.00011992,2]
[361904989,1747879846576,-109005.98505692,0.00011992,2]
[361905021,1747879846889,-485.61502593,0.00011992,2]
[361905803,1747879867679,300.0,0.000115,4]
[361905804,1747879869805,700.0,0.000116,4]
[361905805,1747880127702,-225.82261425,0.000117,4]
[361905806,1747880130044,-192.55856394,0.000117,4]
[361905807,1747880148861,187.23954297,0.000115,4]
[361905809,1747880510754,312.82446741,0.00011226,2]
[361905810,1747880510780,239.99553259,0.00011226,2]
[361905811,1747880550203,781.16,9.203e-05,2]
[361905812,1747880550305,781.16,0.00011467,2]
[361905813,1747880582471,200.0,0.00011121,2]
[361905815,1747880699366,177.63,0.00011126,2]
[361905816,1747880739819,-250.0,0.0001173,2]
[361905817,1747880739842,-18.90880461,0.0001176,2]
[361905819,1747880769591,-318.76073379,0.0001176,2]
[361905820,1747880795445,-318.76073379,0.0001176,2]
[361905821,1747880798296,150.0,0.00012,5]
[361905822,1747880827713,200.0,0.000113,4]
[361905824,1747880830051,460.40438962,0.000114,4]
[361905825,1747880830078,39.59561038,0.000114,4]
[361905826,1747880831881,800.0,0.000115,4]
[361905827,1747880833975,1100.0,0.000116,4]
[361905837,1747880859402,-318.76073379,0.000117,4]
[361905838,1747880862754,-170.55339718,0.000117,4]
[361905839,1747880864298,-246.89,0.000117,4]
[361905843,1747880920444,900.75431183,0.00011124,2]
[361905844,1747880920467,2840.34992221,0.00011124,2]